[Event "*** Titled Tuesday Blitz"]
[Site "Chess.com"]
[Date "2020.05.26"]
[Round "4"]
[White "PauloFanha"]
[Black "Walter_White_Poland"]
[Result "1-0"]
[WhiteElo "1987"]
[BlackElo "2184"]
[TimeControl "180+1"]
[EndTime "10:37:15 PDT"]
[Termination "PauloFanha won on time"]

1. e4 {[%clk 0:03:00.9]} 1... e5 {[%clk 0:02:58.5]} 2. Bc4 {[%clk 0:03:00]} 2...
Nf6 {[%clk 0:02:58]} 3. d4 {[%clk 0:02:59.5]} 3... exd4 {[%clk 0:02:57.3]} 4.
Nf3 {[%clk 0:02:59]} 4... Nc6 {[%clk 0:02:56.7]} 5. O-O {[%clk 0:02:58.4]} 5...
Nxe4 {[%clk 0:02:56.5]} 6. Re1 {[%clk 0:02:57.9]} 6... d5 {[%clk 0:02:56.3]} 7.
Bxd5 {[%clk 0:02:57.6]} 7... Qxd5 {[%clk 0:02:56.3]} 8. Nc3 {[%clk 0:02:57.1]}
8... Qa5 {[%clk 0:02:51.1]} 9. Nxe4 {[%clk 0:02:56.6]} 9... Be6 {[%clk 0:02:51]}
10. Bd2 {[%clk 0:02:49.4]} 10... Bb4 {[%clk 0:02:50.2]} 11. Neg5 {[%clk
0:02:39.9]} 11... Bxd2 {[%clk 0:02:26.4]} 12. Qxd2 {[%clk 0:02:35]} 12... Qxd2
{[%clk 0:02:23]} 13. Nxd2 {[%clk 0:02:34.2]} 13... Kd7 {[%clk 0:02:16]} 14. Rad1
{[%clk 0:02:19.9]} 14... h6 {[%clk 0:01:57.4]} 15. Nxe6 {[%clk 0:02:15]} 15...
fxe6 {[%clk 0:01:57.5]} 16. Nf3 {[%clk 0:02:15.3]} 16... Rad8 {[%clk 0:01:36]}
17. Nxd4 {[%clk 0:02:10.3]} 17... Nxd4 {[%clk 0:01:35.9]} 18. Rxd4+ {[%clk
0:02:09.9]} 18... Ke7 {[%clk 0:01:36.1]} 19. Red1 {[%clk 0:02:09]} 19... Rxd4
{[%clk 0:01:33.8]} 20. Rxd4 {[%clk 0:02:09.3]} 20... Rd8 {[%clk 0:01:25]} 21.
Rxd8 {[%clk 0:02:08.5]} 21... Kxd8 {[%clk 0:01:25.9]} 22. Kf1 {[%clk 0:02:08.3]}
22... Ke7 {[%clk 0:01:26.4]} 23. Ke2 {[%clk 0:02:08.8]} 23... Kd6 {[%clk
0:01:27.1]} 24. Ke3 {[%clk 0:02:07.4]} 24... Kd5 {[%clk 0:01:27.1]} 25. f4
{[%clk 0:02:01.1]} 25... b5 {[%clk 0:00:55.5]} 26. c3 {[%clk 0:01:48.9]} 26...
c5 {[%clk 0:00:47.5]} 27. b3 {[%clk 0:01:48]} 27... h5 {[%clk 0:00:35.4]} 28. g3
{[%clk 0:01:41.1]} 28... g6 {[%clk 0:00:31.8]} 29. h3 {[%clk 0:01:36.3]} 29...
a5 {[%clk 0:00:07.3]} 30. a3 {[%clk 0:01:34.1]} 30... c4 {[%clk 0:00:01.6]} 31.
b4 {[%clk 0:01:29.4]} 1-0

[Event "*** Titled Tuesday Blitz"]
[Site "Chess.com"]
[Date "2020.05.26"]
[Round "4"]
[White "GasconJR"]
[Black "Roenko_Artur"]
[Result "1-0"]
[WhiteElo "2469"]
[BlackElo "2294"]
[TimeControl "180+1"]
[EndTime "10:37:19 PDT"]
[Termination "GasconJR won by resignation"]

1. d4 {[%clk 0:03:00.9]} 1... d5 {[%clk 0:02:58.7]} 2. Bf4 {[%clk 0:03:00]} 2...
e6 {[%clk 0:02:58.7]} 3. e3 {[%clk 0:02:56.8]} 3... c5 {[%clk 0:02:58.9]} 4. Nf3
{[%clk 0:02:53.6]} 4... Nc6 {[%clk 0:02:57.9]} 5. Nbd2 {[%clk 0:02:52.7]} 5...
Nf6 {[%clk 0:02:56.1]} 6. c3 {[%clk 0:02:50]} 6... Bd6 {[%clk 0:02:54.9]} 7. Bg3
{[%clk 0:02:49.7]} 7... O-O {[%clk 0:02:52.6]} 8. Bd3 {[%clk 0:02:49.8]} 8... b6
{[%clk 0:02:51.5]} 9. e4 {[%clk 0:02:49.1]} 9... dxe4 {[%clk 0:02:37.5]} 10.
Nxe4 {[%clk 0:02:50]} 10... Nxe4 {[%clk 0:02:26.7]} 11. Bxe4 {[%clk 0:02:50.9]}
11... Bb7 {[%clk 0:02:20.5]} 12. dxc5 {[%clk 0:02:50.8]} 12... Bxc5 {[%clk
0:02:19.6]} 13. Qa4 {[%clk 0:02:50.3]} 13... Qc8 {[%clk 0:01:51.8]} 14. Bxh7+
{[%clk 0:02:08]} 14... Kxh7 {[%clk 0:01:37.5]} 15. Qh4+ {[%clk 0:02:08.9]} 15...
Kg8 {[%clk 0:01:27.8]} 16. Ng5 {[%clk 0:02:07.4]} 16... Rd8 {[%clk 0:01:12.1]}
17. Qh7+ {[%clk 0:02:06.7]} 17... Kf8 {[%clk 0:01:12.1]} 18. Qh8+ {[%clk
0:02:07.6]} 18... Ke7 {[%clk 0:01:12]} 19. Qxg7 {[%clk 0:02:08.5]} 19... Rf8
{[%clk 0:00:59.4]} 20. Rd1 {[%clk 0:02:02.8]} 20... a5 {[%clk 0:00:51.2]} 21.
Bh4 {[%clk 0:02:01.7]} 21... Ke8 {[%clk 0:00:45.3]} 22. Nh7 {[%clk 0:01:49.7]}
22... Qc7 {[%clk 0:00:24.7]} 23. Nf6+ {[%clk 0:01:48.7]} 23... Ke7 {[%clk
0:00:12]} 24. Nd5+ {[%clk 0:01:49.6]} 24... Kd7 {[%clk 0:00:12.6]} 25. Nxc7+
{[%clk 0:01:50.5]} 25... Kxc7 {[%clk 0:00:13.5]} 26. Bg3+ {[%clk 0:01:49.3]}
26... Kc8 {[%clk 0:00:09.2]} 27. Bd6 {[%clk 0:01:31.6]} 27... Bxd6 {[%clk
0:00:06.8]} 28. Rxd6 {[%clk 0:01:32.5]} 28... Kc7 {[%clk 0:00:06.7]} 29. Rd1
{[%clk 0:01:25.5]} 29... Ne7 {[%clk 0:00:05.9]} 30. Qe5+ {[%clk 0:01:24.8]}
30... Kc8 {[%clk 0:00:02.8]} 31. O-O {[%clk 0:01:24.1]} 1-0

[Event "*** Titled Tuesday Blitz"]
[Site "Chess.com"]
[Date "2020.05.26"]
[Round "4"]
[White "Ashedu66"]
[Black "Jadeit90"]
[Result "0-1"]
[WhiteElo "2164"]
[BlackElo "2320"]
[TimeControl "180+1"]
[EndTime "10:37:24 PDT"]
[Termination "Jadeit90 won on time"]

1. d4 {[%clk 0:03:00.9]} 1... g6 {[%clk 0:03:00.3]} 2. e4 {[%clk 0:03:00.4]}
2... Bg7 {[%clk 0:02:55.3]} 3. Nc3 {[%clk 0:03:00.3]} 3... c5 {[%clk 0:02:54.9]}
4. d5 {[%clk 0:02:59.5]} 4... d6 {[%clk 0:02:55]} 5. Bb5+ {[%clk 0:02:55.2]}
5... Bd7 {[%clk 0:02:54.6]} 6. a4 {[%clk 0:02:55.3]} 6... Nf6 {[%clk 0:02:53]}
7. Nf3 {[%clk 0:02:51.6]} 7... O-O {[%clk 0:02:49.3]} 8. h3 {[%clk 0:02:48.7]}
8... e6 {[%clk 0:02:49.6]} 9. O-O {[%clk 0:02:48.2]} 9... exd5 {[%clk
0:02:49.1]} 10. exd5 {[%clk 0:02:48.3]} 10... Na6 {[%clk 0:02:49.5]} 11. Bf4
{[%clk 0:02:44]} 11... Bf5 {[%clk 0:02:46.2]} 12. Re1 {[%clk 0:02:23.1]} 12...
Nb4 {[%clk 0:02:46.3]} 13. Rc1 {[%clk 0:02:19.9]} 13... a6 {[%clk 0:02:46.1]}
14. Bf1 {[%clk 0:02:18.8]} 14... Rb8 {[%clk 0:02:33.9]} 15. Qd2 {[%clk
0:02:02.9]} 15... b5 {[%clk 0:02:21.7]} 16. axb5 {[%clk 0:02:00.6]} 16... axb5
{[%clk 0:02:22.6]} 17. g4 {[%clk 0:01:41.1]} 17... Bc8 {[%clk 0:02:15.4]} 18.
Bxb5 {[%clk 0:01:25.3]} 18... Nfxd5 {[%clk 0:02:08.4]} 19. Nxd5 {[%clk
0:01:19.5]} 19... Rxb5 {[%clk 0:02:08.2]} 20. Ne7+ {[%clk 0:00:55.6]} 20... Kh8
{[%clk 0:02:07.7]} 21. c3 {[%clk 0:00:41.3]} 21... Bb7 {[%clk 0:02:00.8]} 22.
Ng5 {[%clk 0:00:28.2]} 22... Nc6 {[%clk 0:01:59.1]} 23. Bxd6 {[%clk 0:00:20.2]}
23... Nxe7 {[%clk 0:01:50.9]} 24. Rxe7 {[%clk 0:00:17.9]} 24... Qa8 {[%clk
0:01:50.8]} 25. Nxf7+ {[%clk 0:00:16.3]} 25... Kg8 {[%clk 0:01:50.4]} 26. Qe3
{[%clk 0:00:07.3]} 26... Bh1 {[%clk 0:01:48.1]} 27. f3 {[%clk 0:00:06.9]} 27...
Bxf3 {[%clk 0:01:33.2]} 28. Qe6 {[%clk 0:00:06.6]} 28... Bd5 {[%clk 0:01:32.8]}
29. Nh6+ {[%clk 0:00:06.2]} 29... Kh8 {[%clk 0:01:32.8]} 30. Qd7 {[%clk
0:00:03.8]} 30... Rb7 {[%clk 0:01:22.7]} 0-1

[Event "*** Titled Tuesday Blitz"]
[Site "Chess.com"]
[Date "2020.05.26"]
[Round "4"]
[White "Firouzja2003"]
[Black "talman67"]
[Result "1-0"]
[WhiteElo "3168"]
[BlackElo "2565"]
[TimeControl "180+1"]
[EndTime "10:37:25 PDT"]
[Termination "Firouzja2003 won on time"]

1. d4 {[%clk 0:03:00.8]} 1... Nf6 {[%clk 0:02:59.8]} 2. c4 {[%clk 0:03:00.8]}
2... e6 {[%clk 0:03:00.3]} 3. Nf3 {[%clk 0:03:01.7]} 3... b6 {[%clk 0:03:00.3]}
4. Nc3 {[%clk 0:03:02.6]} 4... Bb4 {[%clk 0:02:59.6]} 5. Qc2 {[%clk 0:03:01.1]}
5... Bb7 {[%clk 0:02:58.6]} 6. a3 {[%clk 0:02:59.8]} 6... Bxc3+ {[%clk
0:02:45.3]} 7. Qxc3 {[%clk 0:03:00.7]} 7... Ne4 {[%clk 0:02:41]} 8. Qc2 {[%clk
0:02:57.1]} 8... f5 {[%clk 0:02:41.3]} 9. Bf4 {[%clk 0:02:52.5]} 9... d6 {[%clk
0:02:36.1]} 10. e3 {[%clk 0:02:43.4]} 10... g5 {[%clk 0:02:26.2]} 11. Bg3 {[%clk
0:02:37.6]} 11... h5 {[%clk 0:02:25.9]} 12. h4 {[%clk 0:02:37.5]} 12... g4
{[%clk 0:02:23.6]} 13. Ng5 {[%clk 0:02:32.6]} 13... Nxg5 {[%clk 0:02:17.7]} 14.
hxg5 {[%clk 0:02:32.6]} 14... Qxg5 {[%clk 0:02:18.6]} 15. c5 {[%clk 0:02:24.8]}
15... Qe7 {[%clk 0:01:13.8]} 16. Bb5+ {[%clk 0:02:20.5]} 16... Kf8 {[%clk
0:00:48.3]} 17. cxd6 {[%clk 0:02:10.2]} 17... cxd6 {[%clk 0:00:49.2]} 18. Bh4
{[%clk 0:02:10.2]} 18... Qf7 {[%clk 0:00:46.4]} 19. O-O {[%clk 0:02:03.7]} 19...
Kg7 {[%clk 0:00:34.1]} 20. Rac1 {[%clk 0:02:00.7]} 20... Ba6 {[%clk 0:00:12.6]}
21. Bxa6 {[%clk 0:01:51.2]} 21... Nxa6 {[%clk 0:00:13.5]} 22. Qc6 {[%clk
0:01:51.6]} 22... d5 {[%clk 0:00:08]} 23. Bg3 {[%clk 0:01:39.6]} 23... Rhc8
{[%clk 0:00:04.9]} 24. Qxc8 {[%clk 0:01:31.4]} 24... Rxc8 {[%clk 0:00:04.2]} 25.
Be5+ {[%clk 0:01:31.6]} 25... Kg6 {[%clk 0:00:03.8]} 26. Rxc8 {[%clk 0:01:32.5]}
26... h4 {[%clk 0:00:04.1]} 27. Rfc1 {[%clk 0:01:29]} 27... Qb7 {[%clk
0:00:01.1]} 28. Rg8+ {[%clk 0:01:27.2]} 28... Kh6 {[%clk 0:00:01]} 29. Rcc8
{[%clk 0:01:26]} 1-0

[Event "*** Titled Tuesday Blitz"]
[Site "Chess.com"]
[Date "2020.05.26"]
[Round "4"]
[White "Joshukid"]
[Black "2nd_life"]
[Result "1-0"]
[WhiteElo "2627"]
[BlackElo "2462"]
[TimeControl "180+1"]
[EndTime "10:37:31 PDT"]
[Termination "Joshukid won by resignation"]

1. d4 {[%clk 0:02:59.1]} 1... Nf6 {[%clk 0:02:59.7]} 2. Nc3 {[%clk 0:02:55.3]}
2... e6 {[%clk 0:02:51.7]} 3. Bf4 {[%clk 0:02:48.5]} 3... Bb4 {[%clk 0:02:45.1]}
4. e3 {[%clk 0:02:45.8]} 4... Nd5 {[%clk 0:02:35.7]} 5. Ne2 {[%clk 0:02:43.9]}
5... Nxf4 {[%clk 0:02:32.1]} 6. exf4 {[%clk 0:02:44.8]} 6... b6 {[%clk
0:02:25.3]} 7. a3 {[%clk 0:02:43.2]} 7... Be7 {[%clk 0:02:20.9]} 8. g3 {[%clk
0:02:25.1]} 8... Bb7 {[%clk 0:02:19.3]} 9. d5 {[%clk 0:02:24.9]} 9... exd5
{[%clk 0:01:31.7]} 10. Nxd5 {[%clk 0:02:21.8]} 10... c6 {[%clk 0:01:13.7]} 11.
Ne3 {[%clk 0:02:19.2]} 11... d5 {[%clk 0:01:11]} 12. Bg2 {[%clk 0:02:15.4]}
12... O-O {[%clk 0:01:10.3]} 13. O-O {[%clk 0:02:15.4]} 13... Nd7 {[%clk
0:01:09.9]} 14. c3 {[%clk 0:02:06]} 14... Nf6 {[%clk 0:01:05.9]} 15. Nd4 {[%clk
0:02:00.4]} 15... Re8 {[%clk 0:01:03.3]} 16. Re1 {[%clk 0:01:57.2]} 16... Bf8
{[%clk 0:01:01.2]} 17. Qc2 {[%clk 0:01:46.1]} 17... Qc7 {[%clk 0:00:51.9]} 18.
Rad1 {[%clk 0:01:43]} 18... a6 {[%clk 0:00:50.5]} 19. h4 {[%clk 0:01:39.5]}
19... Rad8 {[%clk 0:00:47]} 20. Nf3 {[%clk 0:01:30]} 20... Ne4 {[%clk
0:00:23.4]} 21. Ne5 {[%clk 0:01:16]} 21... f6 {[%clk 0:00:23.4]} 22. Bxe4 {[%clk
0:01:09.8]} 22... dxe4 {[%clk 0:00:22.1]} 23. Qb3+ {[%clk 0:01:09.2]} 23... Rd5
{[%clk 0:00:12.8]} 24. Rxd5 {[%clk 0:00:59.3]} 24... cxd5 {[%clk 0:00:04.2]} 25.
Nxd5 {[%clk 0:00:59.5]} 1-0

[Event "*** Titled Tuesday Blitz"]
[Site "Chess.com"]
[Date "2020.05.26"]
[Round "4"]
[White "Zarikovs1999"]
[Black "powermove"]
[Result "1-0"]
[WhiteElo "2345"]
[BlackElo "1753"]
[TimeControl "180+1"]
[EndTime "10:37:32 PDT"]
[Termination "Zarikovs1999 won by resignation"]

1. e4 {[%clk 0:02:57.6]} 1... c5 {[%clk 0:02:58.9]} 2. Nf3 {[%clk 0:02:57.1]}
2... g6 {[%clk 0:02:57]} 3. d4 {[%clk 0:02:56.1]} 3... cxd4 {[%clk 0:02:57.2]}
4. Qxd4 {[%clk 0:02:57]} 4... Nf6 {[%clk 0:02:55]} 5. e5 {[%clk 0:02:57.4]} 5...
Nc6 {[%clk 0:02:54.8]} 6. Qa4 {[%clk 0:02:57.8]} 6... Nd5 {[%clk 0:02:53]} 7. c4
{[%clk 0:02:53.5]} 7... Nb6 {[%clk 0:02:50.2]} 8. Qb3 {[%clk 0:02:53.2]} 8... d6
{[%clk 0:02:29.3]} 9. exd6 {[%clk 0:02:41.1]} 9... Qxd6 {[%clk 0:02:23.2]} 10.
Be2 {[%clk 0:02:40.5]} 10... Bg7 {[%clk 0:02:22.4]} 11. O-O {[%clk 0:02:40.3]}
11... O-O {[%clk 0:02:21.4]} 12. Nc3 {[%clk 0:02:40]} 12... Qb4 {[%clk
0:02:17.8]} 13. Qc2 {[%clk 0:02:35.1]} 13... Bf5 {[%clk 0:02:10]} 14. Ne4 {[%clk
0:02:25.1]} 14... e5 {[%clk 0:01:26.5]} 15. a3 {[%clk 0:02:12.6]} 15... Qe7
{[%clk 0:01:25.3]} 16. Bg5 {[%clk 0:02:09.7]} 16... f6 {[%clk 0:01:24.7]} 17.
Be3 {[%clk 0:02:09.9]} 17... Rfd8 {[%clk 0:01:20.1]} 18. Nh4 {[%clk 0:02:04.4]}
18... Bxe4 {[%clk 0:01:07.9]} 19. Qxe4 {[%clk 0:01:56.8]} 19... Nd4 {[%clk
0:01:07.7]} 20. Rfe1 {[%clk 0:01:29.1]} 20... f5 {[%clk 0:01:05.3]} 21. Nxf5
{[%clk 0:01:27.3]} 21... gxf5 {[%clk 0:01:04.5]} 22. Qb1 {[%clk 0:01:25]} 22...
Nb3 {[%clk 0:00:59.5]} 23. Qxf5 {[%clk 0:01:22.6]} 23... Nxa1 {[%clk 0:00:57.4]}
24. Rxa1 {[%clk 0:01:22]} 24... Qf7 {[%clk 0:00:51.1]} 25. Qe4 {[%clk
0:01:21.7]} 25... Rac8 {[%clk 0:00:45.8]} 26. b3 {[%clk 0:01:18.6]} 26... Qg6
{[%clk 0:00:27.4]} 27. Qxb7 {[%clk 0:01:14.3]} 27... e4 {[%clk 0:00:23.6]} 28.
Rf1 {[%clk 0:01:10.9]} 28... Rd7 {[%clk 0:00:21.8]} 29. Qa6 {[%clk 0:01:10]}
29... h5 {[%clk 0:00:12]} 30. Bxb6 {[%clk 0:01:09.4]} 30... axb6 {[%clk
0:00:10.4]} 31. Qxc8+ {[%clk 0:01:09.1]} 1-0

[Event "*** Titled Tuesday Blitz"]
[Site "Chess.com"]
[Date "2020.05.26"]
[Round "4"]
[White "temus_galaktionov"]
[Black "AwareIdea"]
[Result "1-0"]
[WhiteElo "2706"]
[BlackElo "2504"]
[TimeControl "180+1"]
[EndTime "10:37:33 PDT"]
[Termination "temus_galaktionov won by resignation"]

1. d4 {[%clk 0:02:59.5]} 1... d5 {[%clk 0:02:59.7]} 2. Nf3 {[%clk 0:02:59.7]}
2... Nf6 {[%clk 0:02:59.7]} 3. c4 {[%clk 0:03:00]} 3... e6 {[%clk 0:02:59.8]} 4.
Nc3 {[%clk 0:02:59.2]} 4... Bb4 {[%clk 0:02:59.6]} 5. cxd5 {[%clk 0:02:58.8]}
5... exd5 {[%clk 0:03:00.5]} 6. Bg5 {[%clk 0:02:58.8]} 6... h6 {[%clk
0:03:00.6]} 7. Bxf6 {[%clk 0:02:58.3]} 7... Qxf6 {[%clk 0:03:01.5]} 8. e3 {[%clk
0:02:58.6]} 8... c6 {[%clk 0:03:00.1]} 9. Bd3 {[%clk 0:02:58.4]} 9... Bg4 {[%clk
0:02:58.9]} 10. h3 {[%clk 0:02:58]} 10... Bxf3 {[%clk 0:02:57.6]} 11. Qxf3
{[%clk 0:02:58.9]} 11... Qxf3 {[%clk 0:02:57.4]} 12. gxf3 {[%clk 0:02:59.8]}
12... Bxc3+ {[%clk 0:02:57.6]} 13. bxc3 {[%clk 0:02:58.8]} 13... Nd7 {[%clk
0:02:54]} 14. Rb1 {[%clk 0:02:57.1]} 14... b5 {[%clk 0:02:53.8]} 15. a4 {[%clk
0:02:55.2]} 15... a6 {[%clk 0:02:53.5]} 16. e4 {[%clk 0:02:51.5]} 16... Nb6
{[%clk 0:02:52.7]} 17. a5 {[%clk 0:02:49.6]} 17... Nc4 {[%clk 0:02:45.8]} 18.
Bxc4 {[%clk 0:02:49.2]} 18... dxc4 {[%clk 0:02:45.7]} 19. Rg1 {[%clk 0:02:48.1]}
19... g6 {[%clk 0:02:45.5]} 20. Kd2 {[%clk 0:02:43.3]} 20... O-O-O {[%clk
0:02:44.2]} 21. Kc2 {[%clk 0:02:39.5]} 21... Rhe8 {[%clk 0:02:43.4]} 22. Rbd1
{[%clk 0:02:36.8]} 22... Kc7 {[%clk 0:02:42.6]} 23. Kb2 {[%clk 0:02:36.1]} 23...
Re6 {[%clk 0:02:41.2]} 24. Ka3 {[%clk 0:02:32.4]} 24... Rf6 {[%clk 0:02:34.4]}
25. Rg3 {[%clk 0:02:29.9]} 25... h5 {[%clk 0:02:34.4]} 26. h4 {[%clk 0:02:28.3]}
26... Rf4 {[%clk 0:02:34.2]} 27. Rh3 {[%clk 0:02:27.8]} 27... Rd6 {[%clk
0:02:23.9]} 28. e5 {[%clk 0:02:26.1]} 28... Rd5 {[%clk 0:02:21.4]} 29. Re1
{[%clk 0:02:26.2]} 29... Kd7 {[%clk 0:02:20]} 30. Re4 {[%clk 0:02:23.2]} 30...
Rf5 {[%clk 0:02:07.8]} 31. f4 {[%clk 0:02:22.6]} 31... Ke6 {[%clk 0:02:04]} 32.
Rhe3 {[%clk 0:02:15.4]} 32... Rd8 {[%clk 0:02:02.7]} 33. Kb4 {[%clk 0:02:13.6]}
33... Rd5 {[%clk 0:02:01.4]} 34. f3 {[%clk 0:02:13.5]} 34... Ke7 {[%clk
0:01:59.7]} 35. Re2 {[%clk 0:02:08.8]} 35... Ke6 {[%clk 0:01:53.8]} 36. Rg2
{[%clk 0:02:08.3]} 36... Ke7 {[%clk 0:01:51]} 37. Rg1 {[%clk 0:01:59.2]} 37...
Ke6 {[%clk 0:01:51.1]} 38. Rg5 {[%clk 0:01:58.9]} 38... Rxg5 {[%clk 0:01:28.8]}
39. fxg5 {[%clk 0:01:59.8]} 39... Kf5 {[%clk 0:01:29]} 40. Re1 {[%clk
0:01:47.4]} 40... Ke6 {[%clk 0:01:22.4]} 41. Re2 {[%clk 0:01:45.5]} 41... Kf5
{[%clk 0:01:03.3]} 42. Re4 {[%clk 0:01:42.6]} 42... Ke6 {[%clk 0:00:42.3]} 43.
Rf4 {[%clk 0:01:40.8]} 43... c5+ {[%clk 0:00:34.9]} 44. dxc5 {[%clk 0:01:40.5]}
44... Rxe5 {[%clk 0:00:35.3]} 45. Rf6+ {[%clk 0:01:40.4]} 45... Ke7 {[%clk
0:00:29]} 46. Rxa6 {[%clk 0:01:40]} 46... Rf5 {[%clk 0:00:29]} 47. Rb6 {[%clk
0:01:34.9]} 47... Rxf3 {[%clk 0:00:28.4]} 48. a6 {[%clk 0:01:35.1]} 1-0

[Event "*** Titled Tuesday Blitz"]
[Site "Chess.com"]
[Date "2020.05.26"]
[Round "4"]
[White "vinniethepooh"]
[Black "Parhamov"]
[Result "0-1"]
[WhiteElo "2564"]
[BlackElo "3090"]
[TimeControl "180+1"]
[EndTime "10:37:34 PDT"]
[Termination "Parhamov won by resignation"]

1. Nf3 {[%clk 0:03:00.9]} 1... d5 {[%clk 0:02:50.3]} 2. g3 {[%clk 0:03:01.2]}
2... c6 {[%clk 0:02:49]} 3. Bg2 {[%clk 0:03:01.6]} 3... Bg4 {[%clk 0:02:48.3]}
4. O-O {[%clk 0:03:01.2]} 4... Nd7 {[%clk 0:02:47.7]} 5. d3 {[%clk 0:03:00.6]}
5... e6 {[%clk 0:02:46.9]} 6. c4 {[%clk 0:02:53.6]} 6... Bd6 {[%clk 0:02:46.8]}
7. Nbd2 {[%clk 0:02:50.2]} 7... Ne7 {[%clk 0:02:47.1]} 8. b3 {[%clk 0:02:47.1]}
8... O-O {[%clk 0:02:47.5]} 9. Bb2 {[%clk 0:02:47]} 9... a5 {[%clk 0:02:46.7]}
10. a3 {[%clk 0:02:45.4]} 10... f6 {[%clk 0:02:46.2]} 11. Qc2 {[%clk 0:02:40.7]}
11... e5 {[%clk 0:02:46.1]} 12. h3 {[%clk 0:02:36.2]} 12... Be6 {[%clk
0:02:45.2]} 13. e3 {[%clk 0:02:34.9]} 13... Rb8 {[%clk 0:02:41.1]} 14. Rad1
{[%clk 0:02:33.2]} 14... b5 {[%clk 0:02:40.2]} 15. Rfe1 {[%clk 0:02:29.1]} 15...
Qb6 {[%clk 0:02:40.4]} 16. cxd5 {[%clk 0:02:08.4]} 16... cxd5 {[%clk 0:02:40.4]}
17. Qb1 {[%clk 0:02:05]} 17... g5 {[%clk 0:02:39]} 18. Kh2 {[%clk 0:01:50.8]}
18... Rbc8 {[%clk 0:02:37]} 19. Rc1 {[%clk 0:01:50.1]} 19... Ng6 {[%clk
0:02:36.9]} 20. Ng1 {[%clk 0:01:42.4]} 20... f5 {[%clk 0:02:30.9]} 21. Ne2
{[%clk 0:01:39.3]} 21... Nf6 {[%clk 0:02:29.8]} 22. Rxc8 {[%clk 0:01:32.2]}
22... Rxc8 {[%clk 0:02:30.7]} 23. Rc1 {[%clk 0:01:33]} 23... Rxc1 {[%clk
0:02:28.2]} 24. Qxc1 {[%clk 0:01:33.9]} 24... b4 {[%clk 0:02:29.1]} 25. a4
{[%clk 0:01:32.2]} 25... h5 {[%clk 0:02:22.5]} 26. Nf3 {[%clk 0:01:25.5]} 26...
g4 {[%clk 0:02:21.8]} 27. Ng5 {[%clk 0:01:19.1]} 27... Bd7 {[%clk 0:02:22]} 28.
h4 {[%clk 0:01:10.8]} 28... Bc6 {[%clk 0:02:15]} 29. d4 {[%clk 0:01:08]} 29...
e4 {[%clk 0:02:12.3]} 30. Nf4 {[%clk 0:01:05.2]} 30... Nxf4 {[%clk 0:02:05.9]}
31. gxf4 {[%clk 0:01:05.3]} 31... Bb7 {[%clk 0:02:06.4]} 32. Bf1 {[%clk
0:01:04.6]} 32... Ba6 {[%clk 0:02:05]} 33. Bxa6 {[%clk 0:00:57]} 33... Qxa6
{[%clk 0:02:05.9]} 34. Kg2 {[%clk 0:00:57.8]} 34... Kf8 {[%clk 0:02:05.8]} 35.
Qc2 {[%clk 0:00:43.2]} 35... Ke7 {[%clk 0:02:05.4]} 36. Bc1 {[%clk 0:00:41.2]}
36... Kd7 {[%clk 0:02:05.6]} 37. Bd2 {[%clk 0:00:39.1]} 37... Ke7 {[%clk
0:02:02.1]} 38. Bc1 {[%clk 0:00:38.6]} 38... Nd7 {[%clk 0:02:00.6]} 39. Kg1
{[%clk 0:00:33.8]} 39... Nf8 {[%clk 0:02:00.4]} 40. Kg2 {[%clk 0:00:31.5]} 40...
Ng6 {[%clk 0:01:59.1]} 41. Kg1 {[%clk 0:00:20.8]} 41... Nxh4 {[%clk 0:01:59.2]}
42. Bd2 {[%clk 0:00:18.1]} 42... Nf3+ {[%clk 0:01:57.9]} 43. Nxf3 {[%clk
0:00:15.7]} 43... gxf3 {[%clk 0:01:58.3]} 44. Kh2 {[%clk 0:00:14.8]} 44... Qf1
{[%clk 0:01:57.4]} 0-1

[Event "*** Titled Tuesday Blitz"]
[Site "Chess.com"]
[Date "2020.05.26"]
[Round "4"]
[White "Shockerlover"]
[Black "Justinz"]
[Result "0-1"]
[WhiteElo "1764"]
[BlackElo "2348"]
[TimeControl "180+1"]
[EndTime "10:37:34 PDT"]
[Termination "Justinz won by checkmate"]

1. d4 {[%clk 0:03:00.9]} 1... Nf6 {[%clk 0:02:33.6]} 2. Nf3 {[%clk 0:03:01.8]}
2... e6 {[%clk 0:02:33.3]} 3. c4 {[%clk 0:02:59.9]} 3... b6 {[%clk 0:02:31.6]}
4. g3 {[%clk 0:02:59.1]} 4... Ba6 {[%clk 0:02:31]} 5. Qc2 {[%clk 0:02:50.3]}
5... c5 {[%clk 0:02:26.2]} 6. e3 {[%clk 0:02:44.5]} 6... Bb7 {[%clk 0:02:20.6]}
7. Bg2 {[%clk 0:02:43.6]} 7... cxd4 {[%clk 0:02:16.9]} 8. exd4 {[%clk 0:02:43]}
8... Be7 {[%clk 0:02:16.1]} 9. O-O {[%clk 0:02:40.2]} 9... O-O {[%clk 0:02:16]}
10. Nc3 {[%clk 0:02:39.6]} 10... d5 {[%clk 0:02:13.4]} 11. cxd5 {[%clk
0:02:33.1]} 11... Nxd5 {[%clk 0:02:12.4]} 12. h4 {[%clk 0:02:20.6]} 12... Nd7
{[%clk 0:02:08.3]} 13. a3 {[%clk 0:02:17.8]} 13... Rc8 {[%clk 0:02:06.7]} 14.
Bg5 {[%clk 0:02:07.7]} 14... N7f6 {[%clk 0:02:05.6]} 15. Rac1 {[%clk 0:01:55.9]}
15... Nxc3 {[%clk 0:02:02.7]} 16. bxc3 {[%clk 0:01:55.3]} 16... Bxa3 {[%clk
0:02:02.4]} 17. Ra1 {[%clk 0:01:51.8]} 17... Be7 {[%clk 0:01:30]} 18. Rxa7
{[%clk 0:01:49.8]} 18... Rc7 {[%clk 0:01:30.5]} 19. Rfa1 {[%clk 0:01:08.2]}
19... h6 {[%clk 0:01:22.8]} 20. Bf4 {[%clk 0:01:03]} 20... Bd6 {[%clk
0:01:22.3]} 21. Bxd6 {[%clk 0:00:48.8]} 21... Qxd6 {[%clk 0:01:21.8]} 22. Ne5
{[%clk 0:00:36.4]} 22... Bxg2 {[%clk 0:01:13.1]} 23. Kxg2 {[%clk 0:00:36]} 23...
Rcc8 {[%clk 0:01:06.2]} 24. Qd3 {[%clk 0:00:31.7]} 24... Nd5 {[%clk 0:01:00.6]}
25. Nc4 {[%clk 0:00:26.4]} 25... Qc6 {[%clk 0:00:55.6]} 26. R1a4 {[%clk
0:00:18.4]} 26... Nf4+ {[%clk 0:00:55.2]} 27. Kf1 {[%clk 0:00:10.9]} 27... Qh1#
{[%clk 0:00:54.4]} 0-1